bitfinex-derivatives/quotes_BTCF0:USTF0_20230901
["timestamp","ask_amount","ask_price","bid_price","bid_amount"]
[1693590341763,0.305852,25443.0,25442.0,0.13939677]
[1693590342562,0.453313,25443.0,25442.0,0.066]
[1693590342768,0.620774,25443.0,25442.0,0.066]
[1693590342963,0.620774,25443.0,25435.0,0.147504]
[1693590342964,0.00393,25436.0,25435.0,0.147504]
[1693590343265,0.00393,25436.0,25435.0,0.40439214]
[1693590343567,0.00393,25436.0,25435.0,0.62529591]
[1693590344162,0.00693,25436.0,25435.0,0.65529591]
[1693590344963,0.01093,25436.0,25435.0,0.65529591]
[1693590345880,0.004,25436.0,25435.0,0.77280291]
[1693590346056,0.008,25436.0,25435.0,0.82280291]
[1693590347969,0.00839726,25436.0,25435.0,0.82280291]
[1693590348266,0.01232726,25436.0,25435.0,0.67529591]
[1693590348568,0.01232726,25436.0,25435.0,0.325014]
[1693590348771,0.01232726,25436.0,25435.0,0.472521]
[1693590348965,0.01232726,25436.0,25435.0,0.58189914]
[1693590349166,0.01232726,25436.0,25435.0,0.65529591]
[1693590349466,0.00839726,25436.0,25435.0,0.82280291]
[1693590350064,0.008,25436.0,25435.0,0.82280291]
[1693590350768,0.179431,25436.0,25435.0,0.325014]
[1693590350967,0.17982684,25436.0,25435.0,0.325014]
[1693590351269,0.29292361,25436.0,25435.0,0.325014]
[1693590351469,0.14542261,25436.0,25435.0,0.58189914]
[1693590351769,0.03232584,25436.0,25435.0,0.472521]
[1693590351965,0.01232584,25436.0,25435.0,0.58189914]
[1693590352171,0.01232584,25436.0,25435.0,0.65529591]
[1693590353074,0.01232584,25436.0,25435.0,0.50778891]
[1693590353564,0.58792561,25436.0,25435.0,0.03]
[1693590353872,0.00393,25432.0,25431.0,0.0186]
[1693590354061,0.77759277,25432.0,25431.0,0.0186]
[1693590354266,0.77759277,25432.0,25431.0,1e-08]
[1693590355071,0.78201958,25432.0,25431.0,1e-08]
[1693590355275,2.28201958,25432.0,25431.0,1e-08]
[1693590355671,2.28601958,25432.0,25431.0,1e-08]
[1693590356175,2.27801958,25432.0,25431.0,1e-08]
[1693590356374,2.33501958,25432.0,25431.0,1e-08]
[1693590356574,0.00393,25426.0,25425.0,0.295128]
[1693590356776,0.26458577,25426.0,25425.0,0.54120949]
[1693590356970,0.26500622,25426.0,25425.0,0.7239844]
[1693590357162,0.00435045,25426.0,25425.0,0.61460626]
[1693590357362,0.00435045,25426.0,25425.0,0.76217126]
[1693590357573,0.11744722,25426.0,25425.0,0.76217126]
[1693590357768,0.26500622,25426.0,25425.0,0.54120949]
[1693590358069,0.77815322,25426.0,25425.0,0.24608149]
[1693590358372,0.299084,25423.0,25422.0,0.147579]
[1693590358672,0.77780477,25423.0,25422.0,0.24610335]
[1693590358873,0.00393,25420.0,25419.0,0.295194]
[1693590359075,0.349588,25420.0,25419.0,0.54133076]
[1693590359375,0.77787277,25420.0,25419.0,0.24613676]
[1693590359577,0.77787277,25420.0,25415.0,0.147623]
[1693590359578,0.299154,25417.0,25416.0,0.147616]
[1693590359874,0.00393,25418.0,25416.0,0.83660328]
[1693590360074,0.00041867,25417.0,25416.0,0.61047]
[1693590360276,0.00041867,25417.0,25416.0,1.03938154]
[1693590360772,0.00041867,25417.0,25416.0,0.89176354]
[1693590361280,0.00434867,25417.0,25416.0,0.68898863]
[1693590362277,0.12144544,25417.0,25416.0,0.68898863]
[1693590362774,0.00441867,25417.0,25416.0,1.99087382]
[1693590362975,0.004,25417.0,25416.0,1.99087382]
[1693590363177,0.008,25417.0,25416.0,2.47364873]
[1693590363868,0.008,25417.0,25416.0,2.17364873]
[1693590364070,0.008,25417.0,25416.0,2.15364873]
[1693590364276,0.12109677,25417.0,25416.0,1.97087382]
[1693590364473,0.008,25417.0,25416.0,1.97087382]
[1693590364881,0.008,25417.0,25416.0,2.15364873]
[1693590365178,0.00841772,25417.0,25416.0,2.14894873]
[1693590365567,0.00841772,25417.0,25416.0,2.31656673]
[1693590365967,0.008,25417.0,25416.0,2.31656673]
[1693590366173,0.008,25417.0,25416.0,2.7333606]
[1693590366477,0.008,25417.0,25416.0,2.61656673]
[1693590367174,0.008,25417.0,25416.0,2.29656673]
[1693590367381,0.01193,25417.0,25416.0,1.96617382]
[1693590367574,0.01193,25417.0,25416.0,1.72003719]
[1693590367772,0.01193,25417.0,25416.0,1.79343396]
[1693590367974,0.27263877,25417.0,25416.0,1.57241919]
[1693590368173,0.58786277,25417.0,25416.0,1.13426719]
[1693590368389,0.00393,25414.0,25413.0,0.295264]
[1693590368584,0.41228477,25414.0,25413.0,0.295264]
[1693590368876,0.41228477,25414.0,25413.0,1.42972792]
[1693590368877,0.43228477,25414.0,25413.0,1.42972792]
[1693590369078,0.48316381,25414.0,25413.0,1.42972792]
[1693590369483,0.63479281,25414.0,25413.0,1.28209492]
[1693590369985,0.63479281,25414.0,25413.0,1.13446392]
[1693590370181,0.63479281,25414.0,25411.0,0.147646]
[1693590370182,0.00393,25412.0,25411.0,0.295292]
[1693590370376,0.48277877,25412.0,25411.0,1.42987974]
[1693590371184,0.43271491,25412.0,25411.0,1.57752674]
[1693590371477,0.48318491,25412.0,25411.0,1.57752674]
[1693590371681,0.48718491,25412.0,25411.0,1.57752674]
[1693590371977,0.44071491,25412.0,25411.0,1.57752674]
[1693590372281,0.49118491,25412.0,25411.0,0.442939]
[1693590372482,0.43671491,25412.0,25411.0,0.442939]
[1693590372677,0.49118491,25412.0,25411.0,1.42978028]
[1693590372881,0.44071491,25412.0,25411.0,1.42978028]
[1693590373081,0.44071491,25412.0,25411.0,1.72507428]
[1693590373082,0.01233614,25412.0,25411.0,1.72507428]
[1693590373277,0.00840614,25412.0,25411.0,1.74507428]
[1693590373576,0.00840614,25412.0,25411.0,1.92784919]
[1693590374081,0.008,25412.0,25411.0,1.92784919]
[1693590375181,0.01194,25412.0,25411.0,1.90784919]
[1693590375375,0.01194,25412.0,25411.0,0.295292]
[1693590375376,0.32722,25412.0,25411.0,0.295292]
[1693590375582,0.00394,25408.0,25407.0,0.147667]
[1693590375784,0.13703677,25408.0,25407.0,1.57762055]
[1693590375986,0.13744181,25408.0,25407.0,1.57762055]
[1693590376390,0.13744181,25408.0,25407.0,0.70005614]
[1693590376582,0.00040504,25408.0,25407.0,0.77345291]
[1693590376777,0.00040504,25408.0,25407.0,0.79345291]
[1693590376977,0.00394,25409.0,25407.0,0.79345291]
[1693590377184,0.00394,25409.0,25408.0,0.18277491]
[1693590377373,0.00394,25409.0,25408.0,0.29533]
[1693590377578,0.299258,25409.0,25408.0,0.29533]
[1693590377986,0.41675878,25409.0,25408.0,0.29533]
[1693590378382,0.00394,25406.0,25405.0,0.295358]
[1693590378579,0.58006777,25406.0,25405.0,0.147678]
[1693590378776,0.00394,25400.0,25399.0,0.07817456]
[1693590379075,0.299388,25398.0,25397.0,0.08501736]
[1693590379280,0.319388,25398.0,25397.0,0.01183714]
[1693590379485,0.319388,25398.0,25397.0,0.52842291]
[1693590379486,0.00394,25398.0,25397.0,0.52842291]
[1693590379892,0.00394,25398.0,25397.0,0.63780105]
[1693590380074,0.00394,25398.0,25397.0,1.9204827]
[1693590380075,0.00039563,25398.0,25397.0,1.9204827]
[1693590380285,0.00039563,25398.0,25397.0,2.1867151]
[1693590380676,0.00433563,25398.0,25397.0,1.8712551]
[1693590380883,0.15205763,25398.0,25397.0,1.51558821]
[1693590381181,0.15205763,25398.0,25397.0,0.30729614]
[1693590381182,0.01233563,25398.0,25397.0,0.30729614]
[1693590381380,0.1254324,25398.0,25397.0,0.30729614]
[1693590381782,0.00394,25397.0,25396.0,0.10937814]
[1693590382084,0.00394,25397.0,25396.0,0.35567742]
[1693590382591,0.00394,25397.0,25396.0,0.42907419]
[1693590382888,0.00394,25397.0,25396.0,1.56402364]
[1693590383091,0.00394,25397.0,25396.0,0.42907419]
[1693590383294,0.01194,25398.0,25396.0,0.42907419]
[1693590383598,0.00010585,25399.0,25397.0,0.18277491]
[1693590383786,0.00010585,25399.0,25396.0,0.3]
[1693590384093,0.00039582,25398.0,25397.0,1.56393659]
[1693590384296,0.00039582,25398.0,25397.0,1.40116168]
[1693590384499,0.00439582,25398.0,25397.0,1.58393659]
[1693590384791,0.00010585,25399.0,25398.0,0.00879163]
[1693590385100,0.00400085,25399.0,25398.0,1.59272822]
[1693590385287,0.00394,25406.0,25401.0,0.3]
[1693590385597,0.00394,25403.0,25398.0,0.32879163]
[1693590385896,0.00394,25403.0,25399.0,0.40797918]
[1693590386090,0.00433472,25402.0,25400.0,0.42905409]
[1693590386290,0.11743149,25402.0,25400.0,0.07339677]
[1693590386593,0.11743149,25402.0,25401.0,0.10937814]
[1693590386788,0.11743149,25402.0,25399.0,0.1617]
[1693590386789,0.00433472,25402.0,25399.0,0.1617]
[1693590386988,0.00039472,25402.0,25400.0,0.42904474]
[1693590387188,0.00039472,25402.0,25401.0,0.24626983]
[1693590387496,0.00039472,25402.0,25401.0,0.3396666]
[1693590387690,0.00039472,25402.0,25401.0,0.44904474]
[1693590387895,0.00394,25402.0,25401.0,0.42904474]
[1693590388087,0.004,25402.0,25401.0,0.44904474]
[1693590388590,0.004,25402.0,25401.0,0.43304474]
[1693590388793,0.008,25402.0,25401.0,0.43704474]
[1693590388986,0.008,25402.0,25401.0,0.36364797]
[1693590388987,0.01194,25402.0,25401.0,0.36364797]
[1693590389594,0.008,25402.0,25401.0,0.43704474]
[1693590389789,0.008,25402.0,25401.0,0.45704474]
[1693590390392,0.008,25402.0,25401.0,1.59178181]
[1693590390686,0.008,25402.0,25401.0,0.45704474]
[1693590390901,0.008,25402.0,25401.0,1.59182409]
[1693590391297,0.008,25402.0,25401.0,1.57182409]
[1693590391497,0.008,25402.0,25401.0,1.89182409]
[1693590391793,1.02790856,25410.0,25405.0,0.3]
[1693590391794,0.04214,25410.0,25405.0,0.3]
[1693590391991,0.0382,25410.0,25408.0,0.3]
[1693590392194,0.0382,25410.0,25409.0,0.42904474]
[1693590392496,0.0382,25410.0,25409.0,0.44904474]
[1693590393594,0.0392,25410.0,25409.0,0.44904474]
[1693590393790,0.00394,25416.0,25411.0,0.3]
[1693590393993,0.02394,25416.0,25412.0,0.24626983]
[1693590394195,0.02394,25416.0,25413.0,0.18277491]
[1693590394397,0.02394,25416.0,25414.0,0.24626983]
[1693590394696,0.00394,25416.0,25415.0,0.18277491]
[1693590394894,0.03083021,25418.0,25411.0,0.3]
[1693590395089,0.00394,25419.0,25412.0,1.97157148]
[1693590395285,0.003,25416.0,25415.0,0.3]
[1693590395487,0.00394,25420.0,25415.0,0.56617641]
[1693590395796,0.00394,25421.0,25416.0,0.24617641]
[1693590395991,0.00394,25421.0,25417.0,1.13427742]
[1693590396185,0.00394,25421.0,25418.0,0.42895132]
[1693590396495,0.003,25416.0,25415.0,0.3]
[1693590396697,0.00394,25422.0,25415.0,0.56613711]
[1693590396996,0.0465,25430.0,25418.0,0.3]
[1693590396997,0.00394,25425.0,25418.0,0.3]
[1693590397204,0.02394,25425.0,25419.0,1.5482264]
[1693590397388,0.006,25421.0,25419.0,0.77658059]
[1693590397588,0.00994,25421.0,25420.0,0.18277491]
[1693590397890,0.00994,25421.0,25420.0,0.20277491]
[1693590397891,0.006,25421.0,25420.0,0.20277491]
[1693590398091,0.003,25421.0,25420.0,0.20277491]
[1693590398408,0.003,25421.0,25420.0,0.18277491]
[1693590398409,0.00484217,25421.0,25420.0,0.18277491]
[1693590398590,0.00484217,25421.0,25420.0,0.44889999]
[1693590398898,0.00484217,25421.0,25420.0,1.58300043]
[1693590399290,0.00484217,25421.0,25420.0,1.33687535]
[1693590399693,0.00784217,25421.0,25420.0,1.37387535]
[1693590400092,0.01084217,25421.0,25420.0,1.63698814]
[1693590400293,0.01084217,25421.0,25420.0,1.65698814]
[1693590401202,0.05965283,25431.0,25430.0,0.9]
[1693590401393,0.00393,25442.0,25437.0,0.3]
[1693590401592,0.00393,25439.0,25437.0,0.3]
[1693590401798,0.00393,25438.0,25437.0,0.37339677]
[1693590402001,0.00393,25438.0,25437.0,0.3]
[1693590402303,0.00393,25441.0,25437.0,1.56278985]
[1693590402506,0.00393,25441.0,25438.0,0.07339677]
[1693590402795,0.00393,25441.0,25439.0,0.10937814]
[1693590403007,0.00393,25441.0,25440.0,0.07339677]
[1693590403192,0.00393,25441.0,25437.0,0.3]
[1693590403396,0.00393,25441.0,25438.0,1.31609151]
[1693590403588,0.00393,25441.0,25439.0,1.1333166]
[1693590403897,0.03099528,25446.0,25440.0,0.00393]
[1693590404204,0.02,25446.0,25440.0,0.00393]
[1693590404399,0.02,25446.0,25439.0,0.07793]
[1693590404798,0.02,25446.0,25439.0,0.074]
[1693590405004,0.00039209,25445.0,25439.0,0.04093]
[1693590405504,0.02039209,25445.0,25439.0,0.04093]
[1693590405702,0.02039209,25445.0,25440.0,0.00393]
[1693590406595,0.02039209,25445.0,25440.0,0.02093]
[1693590406990,0.02339209,25445.0,25440.0,0.05793]
[1693590407190,0.02339209,25445.0,25440.0,0.04093]
[1693590407390,0.02339209,25445.0,25440.0,0.07093]
[1693590407391,0.02539209,25445.0,25440.0,0.07093]
[1693590407599,0.02539209,25445.0,25440.0,0.067]
[1693590408093,0.02539209,25445.0,25440.0,0.07093]
[1693590408298,0.02539209,25445.0,25440.0,0.067]
[1693590408693,0.02539209,25445.0,25440.0,0.07093]
[1693590408898,0.00393,25441.0,25440.0,0.067]
[1693590409094,0.00393,25441.0,25440.0,0.24977491]
[1693590409503,0.00393,25441.0,25440.0,0.25370491]
[1693590409801,0.00294871,25441.0,25440.0,0.24977491]
[1693590409999,0.00594871,25441.0,25440.0,0.24977491]
[1693590410401,0.00794871,25441.0,25440.0,0.26070491]
[1693590410700,0.00794871,25441.0,25440.0,0.25677491]
[1693590411602,0.09024046,25450.0,25443.0,0.00393]
[1693590411801,0.02,25450.0,25442.0,0.00393]
[1693590412006,0.00039544,25449.0,25443.0,0.00393]
[1693590412193,0.14782444,25449.0,25443.0,0.589852]
[1693590412394,0.31525344,25449.0,25443.0,0.589852]
[1693590412796,0.31525344,25449.0,25443.0,0.592852]
[1693590413193,0.46268344,25449.0,25443.0,0.592852]
[1693590413606,0.46268344,25449.0,25443.0,0.595852]
[1693590413802,0.63811344,25449.0,25443.0,0.447389]
[1693590414102,0.49068344,25449.0,25443.0,0.447389]
[1693590414299,0.51668344,25449.0,25443.0,0.447389]
[1693590414497,0.51668344,25449.0,25443.0,0.594852]
[1693590414702,0.07439544,25449.0,25444.0,0.00393]
[1693590415006,0.07439544,25449.0,25445.0,0.589804]
[1693590415202,0.07439544,25449.0,25446.0,0.18277491]
[1693590415505,0.07439544,25449.0,25447.0,0.44232]
[1693590415699,0.15949221,25449.0,25447.0,0.62509491]
[1693590415895,0.18749221,25449.0,25447.0,0.62509491]
[1693590416102,0.12486544,25449.0,25447.0,0.44232]
[1693590416307,0.20996221,25449.0,25447.0,0.44232]
[1693590416503,0.18749221,25449.0,25447.0,0.44232]
[1693590416695,0.18749221,25449.0,25447.0,0.55169814]
[1693590416899,0.04639544,25449.0,25447.0,0.55169814]
[1693590417100,0.07439544,25449.0,25447.0,0.44532]
[1693590417295,0.07439544,25449.0,25448.0,0.18277491]
[1693590417594,0.05439544,25449.0,25448.0,0.77251091]
[1693590418504,0.07439544,25449.0,25448.0,0.442302]
[1693590418708,0.51668244,25449.0,25447.0,0.153438]
[1693590418908,0.05047,25448.0,25447.0,0.150438]
[1693590419109,0.45843477,25448.0,25447.0,0.150438]
[1693590419308,0.47843477,25448.0,25447.0,0.150438]
[1693590419509,0.42796477,25448.0,25447.0,0.294878]
[1693590419705,0.05439544,25449.0,25448.0,0.00393]
[1693590419907,0.026,25449.0,25448.0,0.589736]
[1693590420103,0.026,25449.0,25448.0,0.593666]
[1693590420311,0.09171591,25451.0,25448.0,0.77644091]
[1693590420613,0.314838,25451.0,25448.0,0.589736]
[1693590420800,0.294838,25451.0,25448.0,0.589736]
[1693590421003,0.05047,25450.0,25448.0,0.589736]
[1693590421315,0.026,25449.0,25448.0,0.592736]
[1693590421703,0.02842109,25449.0,25448.0,0.592736]
[1693590421903,0.02842109,25449.0,25448.0,0.77551091]
[1693590422304,0.05642109,25449.0,25448.0,0.77851091]
[1693590422806,0.05642109,25449.0,25448.0,0.66913277]
[1693590423007,0.05681832,25449.0,25448.0,0.66913277]
[1693590423206,0.27471732,25449.0,25448.0,0.448302]
[1693590423511,0.03081832,25449.0,25448.0,0.66913277]
[1693590424216,0.03081832,25449.0,25448.0,0.77851091]
[1693590424513,0.05681832,25449.0,25448.0,0.77851091]
[1693590424708,0.05681832,25449.0,25448.0,0.78244091]
[1693590425214,0.05681832,25449.0,25448.0,0.599666]
[1693590425706,0.05681832,25449.0,25448.0,0.70904414]
[1693590425913,0.05681832,25449.0,25448.0,0.595736]
[1693590426210,0.07681832,25449.0,25448.0,0.448302]
[1693590426411,0.24038509,25449.0,25448.0,0.448302]
[1693590426801,0.27154817,25449.0,25448.0,0.448302]
[1693590427609,0.22107817,25449.0,25448.0,0.448302]
[1693590427903,0.22107817,25449.0,25448.0,0.52562877]
[1693590427904,0.1079814,25449.0,25448.0,0.52562877]
[1693590428103,0.0879814,25449.0,25448.0,0.80244091]
[1693590429613,0.0879814,25449.0,25448.0,0.78244091]
[1693590429830,0.05754636,25452.0,25448.0,1.10244091]
[1693590430113,1.29894156,25457.0,25448.0,1.10244091]
[1693590430114,0.3,25459.0,25452.0,0.737055]
[1693590430316,1.642128,25458.0,25452.0,0.589644]
[1693590430517,0.462128,25458.0,25452.0,0.589644]
[1693590430707,0.609504,25458.0,25454.0,0.2948]
[1693590430920,0.16356677,25457.0,25454.0,0.4422]
[1693590431112,0.294776,25456.0,25454.0,0.4422]
[1693590431415,0.32656084,25460.0,25456.0,0.00393]
[1693590431604,0.32656084,25460.0,25457.0,0.589532]
[1693590431605,0.11309677,25459.0,25457.0,0.589532]
[1693590431810,0.11309677,25459.0,25458.0,0.00393]
[1693590432010,0.23767619,25460.0,25458.0,0.51945777]
[1693590432307,0.23767619,25460.0,25458.0,0.62883591]
[1693590432308,0.37077296,25460.0,25458.0,0.62883591]
[1693590432721,0.37077296,25460.0,25458.0,0.51945777]
[1693590432924,0.37077296,25460.0,25458.0,0.63183591]
[1693590433113,0.35077296,25460.0,25458.0,0.63183591]
[1693590433311,0.09031019,25460.0,25459.0,0.00393]
[1693590433511,0.00012,25461.0,25459.0,0.446043]
[1693590433716,0.02012,25461.0,25459.0,0.446043]
[1693590433923,0.06005298,25464.0,25462.0,0.00393]
[1693590434115,0.294653,25467.0,25464.0,0.00393]
[1693590434311,0.294653,25467.0,25465.0,0.442008]
[1693590434312,0.11309677,25466.0,25465.0,0.442008]
[1693590434617,0.11309677,25466.0,25465.0,0.294672]
[1693590434618,0.42775677,25466.0,25465.0,0.294672]
[1693590434824,0.147325,25467.0,25465.0,0.51933477]
[1693590435033,0.28042177,25467.0,25465.0,0.51933477]
[1693590435221,0.3,25470.0,25467.0,0.00393]
[1693590435222,0.06010058,25470.0,25467.0,0.00393]
[1693590435421,0.09086754,25470.0,25468.0,0.445887]
[1693590435623,0.167308,25470.0,25468.0,0.445887]
[1693590435929,0.314616,25470.0,25468.0,0.445887]
[1693590436129,0.314616,25470.0,25468.0,0.51928377]
[1693590436130,0.00074868,25469.0,25468.0,0.51928377]
[1693590436311,0.00074868,25469.0,25468.0,0.593206]
[1693590436512,0.00074868,25469.0,25468.0,0.445887]
[1693590436821,0.00074868,25469.0,25468.0,0.298568]
[1693590437120,0.294619,25470.0,25468.0,0.55526514]
[1693590437324,0.05835964,25471.0,25469.0,0.00393]
[1693590437527,0.294594,25472.0,25470.0,0.441924]
[1693590437827,0.473689,25472.0,25470.0,0.151238]
[1693590438120,0.64173866,25472.0,25469.0,0.294623]
[1693590438321,0.294606,25471.0,25470.0,0.294611]
[1693590438516,0.294606,25471.0,25470.0,0.44585]
[1693590438825,0.32713966,25472.0,25471.0,0.00393]
[1693590439026,0.47369,25472.0,25471.0,0.151232]
[1693590439220,0.58678677,25472.0,25471.0,0.151232]
[1693590439420,0.47369,25472.0,25471.0,0.22462877]
[1693590439819,0.147237,25482.0,25475.0,0.00393]
[1693590440019,0.147225,25484.0,25475.0,0.00393]
[1693590440020,0.294453,25484.0,25483.0,0.00393]
[1693590440322,0.294453,25484.0,25483.0,0.151161]
[1693590440323,0.26032177,25484.0,25483.0,0.151161]
[1693590440523,0.147225,25484.0,25483.0,0.151161]
[1693590440724,0.60524177,25484.0,25482.0,0.00393]
[1693590441019,0.29483609,25484.0,25483.0,0.154161]
[1693590441225,0.45840286,25484.0,25483.0,0.00693]
[1693590441429,0.29483609,25484.0,25483.0,0.08032677]
[1693590441620,0.29483609,25484.0,25483.0,0.24755777]
[1693590441820,0.00038609,25484.0,25483.0,0.39478877]
[1693590442125,0.26070786,25484.0,25483.0,0.22755777]
[1693590442311,0.00038609,25484.0,25483.0,0.52201977]
[1693590442513,0.0316013,25486.0,25485.0,0.00393]
[1693590442717,0.294418,25487.0,25485.0,0.00393]
[1693590442718,0.294418,25487.0,25486.0,0.00393]
[1693590443215,0.294418,25487.0,25486.0,0.151143]
[1693590443435,0.294418,25487.0,25486.0,0.26052114]
[1693590443614,0.147202,25488.0,25487.0,0.00393]
[1693590443927,0.294396,25489.0,25488.0,0.00393]
[1693590444114,0.147198,25489.0,25488.0,0.298336]
[1693590444429,0.147182,25492.0,25490.0,0.00393]
[1693590444613,0.344834,25492.0,25490.0,0.298306]
[1693590444928,0.344834,25492.0,25486.0,0.006]
[1693590444929,1.52983059,25489.0,25486.0,0.006]
[1693590445114,1.52983059,25489.0,25477.0,0.00393]
[1693590445115,1.5,25485.0,25477.0,0.00393]
[1693590445319,1.5,25485.0,25477.0,0.151193]
[1693590445320,0.5889,25484.0,25477.0,0.151193]
[1693590445519,0.6089,25484.0,25477.0,0.00393]
[1693590445929,0.6089,25484.0,25478.0,0.00393]
[1693590446425,1.8089,25484.0,25477.0,0.00393]
[1693590446924,0.3,25482.0,25474.0,0.00393]
[1693590447127,0.32,25482.0,25474.0,0.00393]
[1693590447916,1.2,25481.0,25477.0,0.003]
[1693590448119,0.3,25479.0,25477.0,0.003]
[1693590448324,0.32,25479.0,25477.0,0.003]
[1693590448526,0.16356677,25478.0,25477.0,0.003]
[1693590448728,0.18356677,25478.0,25477.0,0.003]
[1693590449125,0.18356677,25478.0,25477.0,0.005]
[1693590449423,0.18356677,25478.0,25477.0,0.002]
[1693590449629,0.18356677,25478.0,25474.0,0.003]
[1693590449816,0.16356677,25477.0,25474.0,0.003]
[1693590450018,0.023,25478.0,25474.0,0.003]
[1693590450329,1.226,25478.0,25477.0,0.002]
[1693590450628,1.226,25478.0,25467.0,0.00393]
[1693590450922,1.223,25478.0,25474.0,0.003]
[1693590451127,0.16856677,25477.0,25474.0,0.006]
[1693590451324,0.025,25477.0,25474.0,0.006]
[1693590451634,0.16356677,25476.0,25474.0,0.006]
[1693590451925,0.025,25477.0,25476.0,0.00393]
[1693590451926,0.005,25477.0,25476.0,0.00393]
[1693590452120,0.005,25477.0,25475.0,0.00393]
[1693590452121,0.11809677,25477.0,25475.0,0.00393]
[1693590452320,0.008,25477.0,25476.0,0.00393]
[1693590452525,0.16656677,25477.0,25475.0,0.00393]
[1693590452728,0.003,25477.0,25476.0,0.00393]
[1693590453031,0.005,25478.0,25477.0,0.00393]
[1693590453223,0.03173626,25479.0,25478.0,0.00393]
[1693590453425,1.59091003,25485.0,25478.0,0.00393]
[1693590453828,0.02,25484.0,25477.0,0.00393]
[1693590454128,0.02,25484.0,25478.0,0.00393]
[1693590455433,0.023,25484.0,25480.0,0.00393]
[1693590455725,0.16356677,25483.0,25481.0,0.00393]
[1693590455930,0.028,25484.0,25480.0,0.00393]
[1693590456231,0.16356677,25483.0,25479.0,0.00393]
[1693590456531,0.008,25484.0,25483.0,0.00393]
[1693590457427,0.12109677,25484.0,25483.0,0.00393]
[1693590458226,0.17156677,25484.0,25483.0,0.00393]
[1693590458437,0.008,25484.0,25483.0,0.02693]
[1693590458626,0.003,25484.0,25483.0,0.02693]
[1693590458828,0.008,25484.0,25483.0,0.21270491]
[1693590459137,0.008,25484.0,25483.0,0.20970491]
[1693590459525,0.008,25484.0,25483.0,0.50970491]
[1693590460021,0.03124574,25485.0,25484.0,0.00393]
[1693590460221,1.25834875,25494.0,25486.0,0.00393]
[1693590460426,0.6,25493.0,25485.0,0.00392]
[1693590460626,0.6,25493.0,25486.0,0.00392]
[1693590460820,0.62,25493.0,25486.0,0.00392]
[1693590461028,0.6,25490.0,25483.0,0.025]
[1693590461235,0.00392,25480.0,25474.0,0.3]
[1693590461533,0.00392,25481.0,25474.0,0.32]
[1693590462328,0.00392,25482.0,25475.0,0.59156424]
[1693590462530,0.00392,25482.0,25475.0,0.02]
[1693590462731,0.002,25481.0,25475.0,0.02]
[1693590463035,0.002,25481.0,25478.0,0.3]
[1693590463232,0.05965129,25487.0,25479.0,0.18277491]
[1693590463537,0.002,25482.0,25479.0,0.58583778]
[1693590463732,0.002,25482.0,25480.0,0.18277491]
[1693590463938,0.002,25482.0,25480.0,0.02]
[1693590464232,0.002,25482.0,25481.0,0.76786332]
[1693590464432,0.08863266,25489.0,25481.0,0.32]
[1693590464638,0.05883205,25491.0,25481.0,0.32]
[1693590464639,0.00392,25491.0,25484.0,0.3]
[1693590464836,0.02392,25491.0,25484.0,0.32]
[1693590465337,0.00392,25488.0,25484.0,0.02]
[1693590465538,0.16356677,25487.0,25482.0,0.1606]
[1693590465738,0.00392,25487.0,25482.0,0.1606]
[1693590465949,0.00392,25486.0,25484.0,0.003]
[1693590466138,0.00392,25485.0,25484.0,0.00992]
[1693590466328,0.00392,25485.0,25484.0,0.00692]
[1693590466627,0.16748677,25485.0,25484.0,0.006]
[1693590466829,0.16748677,25485.0,25484.0,0.00992]
[1693590467031,0.16748677,25485.0,25484.0,0.00792]
[1693590467234,0.16748677,25485.0,25484.0,0.004]
[1693590467627,0.16356677,25485.0,25484.0,0.00792]
[1693590467829,0.017,25486.0,25485.0,0.00392]
[1693590468133,0.06149682,25492.0,25489.0,0.00392]
[1693590468332,0.00392,25492.0,25491.0,0.00392]
[1693590468541,0.11309677,25492.0,25491.0,0.00392]
[1693590468933,0.00392,25494.0,25493.0,0.00392]
[1693590469133,0.00392,25495.0,25494.0,0.00392]
[1693590469636,0.00792,25492.0,25491.0,0.006]
[1693590469830,0.02792,25492.0,25491.0,0.006]
[1693590470139,0.19148677,25492.0,25491.0,0.006]
[1693590471137,0.19148677,25492.0,25491.0,0.003]
[1693590471543,0.00392,25487.0,25486.0,0.00392]
[1693590471745,0.00392,25486.0,25485.0,0.00392]
[1693590471937,0.00392,25485.0,25484.0,0.00392]
[1693590472136,0.00392,25483.0,25482.0,0.1627]
[1693590472339,0.02392,25483.0,25482.0,0.07163903]
[1693590472539,0.02392,25483.0,25482.0,0.25441394]
[1693590472742,0.11701677,25483.0,25482.0,0.07163903]
[1693590473238,0.11701677,25483.0,25482.0,0.07555903]
[1693590473449,0.11701677,25483.0,25482.0,0.07163903]
[1693590473645,0.11701677,25483.0,25482.0,0.08263903]
[1693590473832,0.00392,25483.0,25482.0,0.08263903]
[1693590474146,0.00392,25484.0,25483.0,0.00392]
[1693590474845,0.05439,25484.0,25483.0,0.00392]
[1693590475045,0.16748677,25484.0,25483.0,0.00392]
[1693590475838,0.16748677,25484.0,25483.0,0.00592]
[1693590476047,0.00392,25485.0,25484.0,0.00392]
[1693590476542,0.00392,25485.0,25484.0,0.09731677]
[1693590476743,0.00392,25485.0,25484.0,0.07731677]
[1693590476941,0.00392,25487.0,25485.0,0.00392]
[1693590477143,0.00392,25487.0,25486.0,0.59278]
[1693590477344,0.00392,25487.0,25486.0,0.60886]
[1693590477542,0.147206,25488.0,25487.0,0.00392]
[1693590477845,0.40750877,25488.0,25487.0,0.44555]
[1693590478043,0.294412,25488.0,25487.0,0.44555]
[1693590478248,0.294412,25488.0,25487.0,0.62832491]
[1693590478447,0.09004915,25489.0,25488.0,0.00392]
[1693590478638,0.00392,25493.0,25491.0,0.00392]
[1693590478843,0.151089,25494.0,25493.0,0.00392]
[1693590479043,0.3234956,25495.0,25494.0,0.00392]
[1693590479243,0.35756383,25495.0,25494.0,0.318256]
[1693590479444,0.40803383,25495.0,25494.0,0.41888101]
[1693590479744,0.05931583,25495.0,25494.0,1.17599392]
[1693590479944,0.00392,25495.0,25494.0,0.54605001]
[1693590480141,0.11701677,25495.0,25494.0,0.54605001]